Workbook

Sheet App.2-B_Fixed Asset Cont 2009
M1: File Number: | N1: =#REF! -> 
M2: Exhibit:
M3: Tab:
M4: Schedule:
M5: Page:
M7: Date:
A8: Attachment 3
A9: Appendix 2-B
A10: Fixed Asset Continuity Schedule
F12: Year | G12: 2009
E14: Cost | K14: Accumulated Depreciation
A15: CCA Class | B15: OEB | C15: Description | D15: Depreciation Rate | E15: Opening Balance | F15: Additions | G15: Disposals | H15: Closing Balance | J15: Opening Balance | K15: Additions | L15: Disposals | M15: Closing Balance | N15: Net Book Value
A16: 12 | B16: 1611 | C16: Computer Software (Formally known as Account 1925)
A17: CEC | B17: 1612 | C17: Land Rights (Formally known as Account 1906)
B18: 1615 | C18: Land | E18: 407800 | H18: =E18+F18+G18 -> 407800 | M18: -407800
B19: 1620 | C19: Buildings &Fixtures | D19: 0.01810452889 | E19: 3893726.36 | F19: 350498.65 | H19: 4244225.01 | M19: -1391257.02 | N19: =H19+M19 -> 2852967.99
B20: 1650 | C20: Reservoirs Dams & Water | E20: 670777.72 | H20: 670777.72 | M20: -750199.84 | N20: -79422.12
B21: 1665 | C21: Fuel Holders Produce | D21: 0.02300000348 | E21: 4740563.91 | F21: 743846.01 | G21: -77637.7 | H21: 5406772.22 | M21: -1258297.61 | N21: 4148474.61
B22: 1670 | C22: Prime Movers | D22: 0.1289000011 | E22: 14089121.96 | F22: 1522474.2 | G22: -484313.57 | H22: 15127282.59 | M22: -12311684.33 | N22: 2815598.26
B23: 1675 | C23: Generators | D23: 0.02609999794 | E23: 6470101.56 | F23: 506969.46 | G23: -278511.77 | H23: 6698559.25 | M23: -2684560.7 | N23: 4013998.55
B24: 1680 | C24: Accessory Electc Equ | D24: 0.02320000405 | E24: 897284.57 | F24: 517297.08 | H24: 1414581.65 | M24: -299574.82 | N24: 1115006.83
B25: 1685 | C25: Misc Power Plant Equ | D25: 0.02342243883 | E25: 2266773.55 | F25: 497215.32 | H25: 2763988.87 | M25: -1920819.78 | N25: 843169.09
A26: N/A | B26: 1805 | C26: Land | D26: 0.01340001303 | E26: 294456.43 | H26: 294456.43 | M26: -44075.23 | N26: 250381.2
B27: 1806 | C27: L&Rights | D27: 0.0136000872 | E27: 230622.44 | F27: 3504 | H27: 234126.44 | M27: -59417.29 | N27: 174709.15
A28: 47 | B28: 1808 | C28: Buildings
A29: 13 | B29: 1810 | C29: Leasehold Improvements
A30: 47 | B30: 1815 | C30: Transformer Station Equipment >50 kV
A31: 47 | B31: 1820 | C31: Distribution Station Equipment <50 kV
A32: 47 | B32: 1825 | C32: Storage Battery Equipment
A33: 47 | B33: 1830 | C33: Poles, Towers & Fixtures | D33: 0.02529999567 | E33: 1491931.43 | F33: 158005.08 | G33: -45041.37 | H33: 1604895.14 | M33: -337964.08 | N33: 1266931.06
A34: 47 | B34: 1835 | C34: Overhead Conductors & Devices | D34: 0.02529997181 | E34: 1384789.48 | F34: 46593.9 | G34: -79.39 | H34: 1431303.99 | M34: -361602.5 | N34: 1069701.49
A35: 47 | B35: 1840 | C35: Underground Conduit
A36: 47 | B36: 1845 | C36: Underground Conductors & Devices | D36: 0.05060008228 | E36: 191609.87 | F36: -5432.91 | H36: 186176.96 | M36: -93017.84 | N36: =H36+M36 -> 93159.12
A37: 47 | B37: 1850 | C37: Line Transformers | D37: 0.02890002983 | E37: 1658559 | F37: 26610.05 | G37: -8612.95 | H37: 1676556.1 | M37: -468843.25 | N37: 1207712.85
A38: 47 | B38: 1855 | C38: Services (Overhead & Underground)
A39: 47 | B39: 1860 | C39: Meters | D39: 0.1498075347 | E39: 104647.61 | F39: 125144.77 | G39: -21144.88 | H39: 208647.5 | M39: -95749.58 | N39: 112897.92
A40: 47 | B40: 1860 | C40: Meters (Smart Meters)
A41: N/A | B41: 1905 | C41: Land
A42: 47 | B42: 1908 | C42: Buildings & Fixtures | D42: 0.0257999965 | E42: 5633004.56 | F42: 412214.7 | G42: 3444.98 | H42: 6048664.24 | M42: -1254808.33 | N42: 4793855.91
A43: 13 | B43: 1910 | C43: Leasehold Improvements
A44: 8 | B44: 1915 | C44: Office Furniture & Equipment (10 years) | D44: 0.130166801 | E44: 17787.66 | H44: 17787.66 | M44: -8757.76 | N44: 9029.9
A45: 8 | B45: 1915 | C45: Office Furniture & Equipment (5 years)
A46: 10 | B46: 1920 | C46: Computer Equipment - Hardware | D46: 0.1998411158 | E46: 53608.87 | F46: 7246.95 | G46: -22999.75 | H46: 37856.07 | M46: -18979.26 | N46: 18876.81
A47: 45 | B47: 1920 | C47: Computer Equip.-Hardware(Post Mar. 22/04)
A48: 45.1 | B48: 1920 | C48: Computer Equip.-Hardware(Post Mar. 19/07)
A49: 10 | B49: 1930 | C49: Transportation Equipment
A50: 8 | B50: 1935 | C50: Stores Equipment | D50: 0.111343817 | E50: 392762.68 | F50: 5417.28 | G50: -36948.96 | H50: 361231 | M50: -276906.04 | N50: 84324.96
A51: 8 | B51: 1940 | C51: Tools, Shop & Garage Equipment | D51: 0.1666666667 | F51: 6078.24 | H51: 6078.24 | M51: -422.1 | N51: 5656.14
A52: 8 | B52: 1945 | C52: Measurement & Testing Equipment | D52: 0.1464571469 | E52: 69585 | F52: 5287 | G52: -12500 | H52: 62372 | M52: -49638.21 | N52: 12733.79
A53: 8 | B53: 1950 | C53: Power Operated Equipment
A54: 8 | B54: 1955 | C54: Communications Equipment | D54: 0.1578000991 | E54: 20332.37 | H54: 20332.37 | M54: -21112.2 | N54: -779.83
A55: 8 | B55: 1955 | C55: Communication Equipment (Smart Meters)
A56: 8 | B56: 1960 | C56: Miscellaneous Equipment | D56: 0.1770986926 | E56: 27866.41 | F56: 13752.41 | H56: 41618.82 | M56: -12260.78 | N56: 29358.04
A57: 47 | B57: 1975 | C57: Load Management Controls Utility Premises
A58: 47 | B58: 1980 | C58: System Supervisor Equipment
A59: 47 | B59: 1985 | C59: Miscellaneous Fixed Assets
A60: 47 | B60: 1995 | C60: Contributions & Grants
B61: A | C61: Maj Rollup Acc Dep Suspense | M61: -343689.1 | N61: -343689.1
B62: B | C62: Acc Dep - Contra for Group Retirement | M62: 172061.28 | N62: 172061.28
B63: C | C63: Suspense/Conversion/Error | M63: 2811.34 | N63: 2811.34
B64: etc.
C66: Total | E66: =SUM(E16:E65) -> 45007713.44 | F66: =SUM(F16:F65) -> 4942722.19 | G66: -984345.36 | H66: 48966090.27 | J66: -22623125.59 | K66: -2654407.28 | L66: 980967.84 | M66: =SUM(M16:M65) -> -24296565.03 | N66: 24669525.24
J68: Less: Fully Allocated Depreciation
A69: 10 | C69: Transportation | J69: Transportation
A70: 8 | C70: Stores Equipment | J70: Stores Equipment
J71: Net Depreciation | L71: =K66-L69-L70 -> -2654407.28
A73: Notes:
A75: 1 | B75: Tables in the format outlined above covering all fixed asset accounts should be submitted for the Test Year, Bridge Year and all relevant historical years. At a minimum , the applicant must provide data for the earlier of: 1) all historical years back to its last rebasing; or 2) at least three years of historical actuals, in addition to Bridge Year and Test Year forecasts.
A78: 2 | B78: The "CCA Class" for fixed assets should agree with the CCA Class used for tax purposes in Tax Returns. Fixed Assets sub-components may be used where the underlying asset components are classified under multiple CCA Classes for tax purposes. If an applicant uses any different classes from those shown in the table, an explanation should be provided. (also see note 3 below).
A81: 3 | B81: The table may need to be customized for a utility's asset categories or for any new asset accounts announced or authorized by the Board.
A83: 4 | B83: The depreciation column (D) is not required as the relevant information will be provided in the following 2-C series of appendices.

Sheet App.2-B_Fixed Asset Cont 2010
M1: File Number: | N1: =#REF! -> 
M2: Exhibit:
M3: Tab:
M4: Schedule:
M5: Page:
M7: Date:
A8: Attachment 3
A9: Appendix 2-B
A10: Fixed Asset Continuity Schedule
F12: Year | G12: 2010
E14: Cost | K14: Accumulated Depreciation
A15: CCA Class | B15: OEB | C15: Description | D15: Depreciation Rate | E15: Opening Balance | F15: Additions | G15: Disposals | H15: Closing Balance | J15: Opening Balance | K15: Additions | L15: Disposals | M15: Closing Balance | N15: Net Book Value
A16: 12 | B16: 1611 | C16: Computer Software (Formally known as Account 1925)
A17: CEC | B17: 1612 | C17: Land Rights (Formally known as Account 1906)
B18: 1615 | C18: Land | E18: =+'App.2-B_Fixed Asset Cont 2009'!H18 -> 407800 | H18: =E18+F18+G18 -> 407800 | J18: =+'App.2-B_Fixed Asset Cont 2009'!M18 -> -407800 | M18: =J18+K18+L18 -> -407800 | N18: =H18+M18 -> 0
B19: 1620 | C19: Buildings &Fixtures | D19: 0.01810452889 | E19: =+'App.2-B_Fixed Asset Cont 2009'!H19 -> 4244225.01 | F19: 889403.11 | G19: -108627.74 | H19: 5025000.38 | J19: =+'App.2-B_Fixed Asset Cont 2009'!M19 -> -1391257.02 | K19: -79559.45 | L19: 108627.74 | M19: -1362188.73 | N19: 3662811.65
B20: 1650 | C20: Reservoirs Dams & Water | E20: =+'App.2-B_Fixed Asset Cont 2009'!H20 -> 670777.72 | H20: 670777.72 | J20: =+'App.2-B_Fixed Asset Cont 2009'!M20 -> -750199.84 | M20: -750199.84 | N20: -79422.12
B21: 1665 | C21: Fuel Holders Produce | D21: 0.02300000348 | E21: =+'App.2-B_Fixed Asset Cont 2009'!H21 -> 5406772.22 | G21: -34126.51 | H21: 5372645.71 | J21: =+'App.2-B_Fixed Asset Cont 2009'!M21 -> -1258297.61 | K21: -124159.55 | L21: 34126.51 | M21: -1348330.65 | N21: 4024315.06
B22: 1670 | C22: Prime Movers | D22: 0.1289000011 | E22: =+'App.2-B_Fixed Asset Cont 2009'!H22 -> 15127282.59 | F22: 457951.51 | G22: -1881240.6 | H22: 13703993.5 | J22: =+'App.2-B_Fixed Asset Cont 2009'!M22 -> -12311684.33 | K22: -1938719.88 | L22: 1847468.85 | M22: -12402935.36 | N22: 1301058.14
B23: 1675 | C23: Generators | D23: 0.02609999794 | E23: =+'App.2-B_Fixed Asset Cont 2009'!H23 -> 6698559.25 | F23: 210165.76 | G23: -638552.18 | H23: 6270172.83 | J23: =+'App.2-B_Fixed Asset Cont 2009'!M23 -> -2684560.7 | K23: -177755.9 | L23: 672323.93 | M23: -2189992.67 | N23: 4080180.16
B24: 1680 | C24: Accessory Electc Equ | D24: 0.02320000405 | E24: =+'App.2-B_Fixed Asset Cont 2009'!H24 -> 1414581.65 | G24: -53257.75 | H24: 1361323.9 | J24: =+'App.2-B_Fixed Asset Cont 2009'!M24 -> -299574.82 | K24: -32469.59 | L24: 53257.75 | M24: -278786.66 | N24: 1082537.24
B25: 1685 | C25: Misc Power Plant Equ | D25: 0.02342243883 | E25: =+'App.2-B_Fixed Asset Cont 2009'!H25 -> 2763988.87 | F25: 880190.25 | G25: -1 | H25: 3644178.12 | J25: =+'App.2-B_Fixed Asset Cont 2009'!M25 -> -1920819.78 | K25: -42226.71 | L25: 1 | M25: -1963045.49 | N25: 1681132.63
A26: N/A | B26: 1805 | C26: Land | D26: 0.01340001303 | E26: =+'App.2-B_Fixed Asset Cont 2009'!H26 -> 294456.43 | H26: 294456.43 | J26: =+'App.2-B_Fixed Asset Cont 2009'!M26 -> -44075.23 | K26: -3945.72 | M26: -48020.95 | N26: 246435.48
B27: 1806 | C27: L&Rights | D27: 0.0136000872 | E27: =+'App.2-B_Fixed Asset Cont 2009'!H27 -> 234126.44 | H27: 234126.44 | J27: =+'App.2-B_Fixed Asset Cont 2009'!M27 -> -59417.29 | K27: -3184.14 | M27: -62601.43 | N27: 171525.01
A28: 47 | B28: 1808 | C28: Buildings
A29: 13 | B29: 1810 | C29: Leasehold Improvements
A30: 47 | B30: 1815 | C30: Transformer Station Equipment >50 kV
A31: 47 | B31: 1820 | C31: Distribution Station Equipment <50 kV
A32: 47 | B32: 1825 | C32: Storage Battery Equipment
A33: 47 | B33: 1830 | C33: Poles, Towers & Fixtures | D33: 0.02529999567 | E33: =+'App.2-B_Fixed Asset Cont 2009'!H33 -> 1604895.14 | F33: 193707.87 | G33: -11849.74 | H33: 1786753.27 | J33: =+'App.2-B_Fixed Asset Cont 2009'!M33 -> -337964.08 | K33: -43549.4 | L33: 11849.74 | M33: -369663.74 | N33: 1417089.53
A34: 47 | B34: 1835 | C34: Overhead Conductors & Devices | D34: 0.02529997181 | E34: =+'App.2-B_Fixed Asset Cont 2009'!H34 -> 1431303.99 | F34: 49406.23 | G34: -7280.12 | H34: 1473430.1 | J34: =+'App.2-B_Fixed Asset Cont 2009'!M34 -> -361602.5 | K34: -37060.93 | L34: 7280.12 | M34: -391383.31 | N34: 1082046.79
A35: 47 | B35: 1840 | C35: Underground Conduit
A36: 47 | B36: 1845 | C36: Underground Conductors & Devices | D36: 0.05060008228 | E36: =+'App.2-B_Fixed Asset Cont 2009'!H36 -> 186176.96 | H36: 186176.96 | J36: =+'App.2-B_Fixed Asset Cont 2009'!M36 -> -93017.84 | K36: -9420.57 | M36: -102438.41 | N36: =H36+M36 -> 83738.55
A37: 47 | B37: 1850 | C37: Line Transformers | D37: 0.02890002983 | E37: =+'App.2-B_Fixed Asset Cont 2009'!H37 -> 1676556.1 | F37: 93226.2 | G37: -31313.16 | H37: 1738469.14 | J37: =+'App.2-B_Fixed Asset Cont 2009'!M37 -> -468843.25 | K37: -46273.68 | L37: 23891.29 | M37: -491225.64 | N37: 1247243.5
A38: 47 | B38: 1855 | C38: Services (Overhead & Underground)
A39: 47 | B39: 1860 | C39: Meters | D39: 0.1498075347 | E39: =+'App.2-B_Fixed Asset Cont 2009'!H39 -> 208647.5 | F39: 100115.98 | G39: -42879.19 | H39: 265884.29 | J39: =+'App.2-B_Fixed Asset Cont 2009'!M39 -> -95749.58 | K39: -44198.77 | L39: 42879.19 | M39: -97069.16 | N39: 168815.13
A40: 47 | B40: 1860 | C40: Meters (Smart Meters)
A41: N/A | B41: 1905 | C41: Land
A42: 47 | B42: 1908 | C42: Buildings & Fixtures | D42: 0.0257999965 | E42: =+'App.2-B_Fixed Asset Cont 2009'!H42 -> 6048664.24 | F42: 615893.35 | H42: 6664557.59 | J42: =+'App.2-B_Fixed Asset Cont 2009'!M42 -> -1254808.33 | K42: -166728.59 | M42: -1421536.92 | N42: 5243020.67
A43: 13 | B43: 1910 | C43: Leasehold Improvements
A44: 8 | B44: 1915 | C44: Office Furniture & Equipment (10 years) | D44: 0.130166801 | E44: =+'App.2-B_Fixed Asset Cont 2009'!H44 -> 17787.66 | F44: 23956.21 | G44: -2629 | H44: 39114.87 | J44: =+'App.2-B_Fixed Asset Cont 2009'!M44 -> -8757.76 | K44: -4064.47 | L44: 2629 | M44: -10193.23 | N44: 28921.64
A45: 8 | B45: 1915 | C45: Office Furniture & Equipment (5 years)
A46: 10 | B46: 1920 | C46: Computer Equipment - Hardware | D46: 0.1998411158 | E46: =+'App.2-B_Fixed Asset Cont 2009'!H46 -> 37856.07 | F46: 25965.48 | G46: -11057.93 | H46: 52763.62 | J46: =+'App.2-B_Fixed Asset Cont 2009'!M46 -> -18979.26 | K46: -8213.19 | L46: 11057.93 | M46: -16134.52 | N46: 36629.1
A47: 45 | B47: 1920 | C47: Computer Equip.-Hardware(Post Mar. 22/04)
A48: 45.1 | B48: 1920 | C48: Computer Equip.-Hardware(Post Mar. 19/07)
A49: 10 | B49: 1930 | C49: Transportation Equipment
A50: 8 | B50: 1935 | C50: Stores Equipment | D50: 0.111343817 | E50: =+'App.2-B_Fixed Asset Cont 2009'!H50 -> 361231 | F50: 43646.81 | G50: -239809.51 | H50: 165068.3 | J50: =+'App.2-B_Fixed Asset Cont 2009'!M50 -> -276906.04 | K50: -17875.29 | L50: 223684.16 | M50: -71097.17 | N50: 93971.13
A51: 8 | B51: 1940 | C51: Tools, Shop & Garage Equipment | D51: 0.1666666667 | E51: =+'App.2-B_Fixed Asset Cont 2009'!H51 -> 6078.24 | H51: 6078.24 | J51: =+'App.2-B_Fixed Asset Cont 2009'!M51 -> -422.1 | K51: -1013.04 | M51: -1435.14 | N51: 4643.1
A52: 8 | B52: 1945 | C52: Measurement & Testing Equipment | D52: 0.1464571469 | E52: =+'App.2-B_Fixed Asset Cont 2009'!H52 -> 62372 | F52: 8716.57 | G52: -52000 | H52: 19088.57 | J52: =+'App.2-B_Fixed Asset Cont 2009'!M52 -> -49638.21 | K52: -9396.06 | L52: 52000 | M52: -7034.27 | N52: 12054.3
A53: 8 | B53: 1950 | C53: Power Operated Equipment | E53: =+'App.2-B_Fixed Asset Cont 2009'!H53 -> 0
A54: 8 | B54: 1955 | C54: Communications Equipment | D54: 0.1578000991 | E54: =+'App.2-B_Fixed Asset Cont 2009'!H54 -> 20332.37 | H54: 20332.37 | J54: =+'App.2-B_Fixed Asset Cont 2009'!M54 -> -21112.2 | K54: -3208.45 | M54: -24320.65 | N54: -3988.28
A55: 8 | B55: 1955 | C55: Communication Equipment (Smart Meters) | E55: =+'App.2-B_Fixed Asset Cont 2009'!H55 -> 0
A56: 8 | B56: 1960 | C56: Miscellaneous Equipment | D56: 0.1770986926 | E56: =+'App.2-B_Fixed Asset Cont 2009'!H56 -> 41618.82 | F56: 64392.31 | G56: 12969.92 | H56: 118981.05 | J56: =+'App.2-B_Fixed Asset Cont 2009'!M56 -> -12260.78 | K56: -14819.07 | L56: 3155.43 | M56: -23924.42 | N56: 95056.63
A57: 47 | B57: 1975 | C57: Load Management Controls Utility Premises
A58: 47 | B58: 1980 | C58: System Supervisor Equipment
A59: 47 | B59: 1985 | C59: Miscellaneous Fixed Assets
A60: 47 | B60: 1995 | C60: Contributions & Grants
B61: A | C61: Maj Rollup Acc Dep Suspense | J61: =+'App.2-B_Fixed Asset Cont 2009'!M61 -> -343689.1 | M61: -343689.1 | N61: -343689.1
B62: B | C62: Acc Dep - Contra for Group Retirement | J62: =+'App.2-B_Fixed Asset Cont 2009'!M62 -> 172061.28 | M62: 172061.28 | N62: 172061.28
B63: C | C63: Suspense/Conversion/Error | J63: =+'App.2-B_Fixed Asset Cont 2009'!M63 -> 2811.34 | K63: -3978.11 | M63: -1166.77 | N63: -1166.77
B64: etc.
C66: Total | E66: =SUM(E16:E65) -> 48966090.27 | F66: =SUM(F16:F65) -> 3656737.64 | G66: -3101654.51 | H66: 49521173.4 | J66: -24296565.03 | K66: -2811820.56 | L66: 3094232.64 | M66: -24014152.95 | N66: 25507020.45
J68: Less: Fully Allocated Depreciation
A69: 10 | C69: Transportation | J69: Transportation
A70: 8 | C70: Stores Equipment | J70: Stores Equipment
J71: Net Depreciation | L71: =K66-L69-L70 -> -2811820.56
A73: Notes:
A75: 1 | B75: Tables in the format outlined above covering all fixed asset accounts should be submitted for the Test Year, Bridge Year and all relevant historical years. At a minimum , the applicant must provide data for the earlier of: 1) all historical years back to its last rebasing; or 2) at least three years of historical actuals, in addition to Bridge Year and Test Year forecasts.
A78: 2 | B78: The "CCA Class" for fixed assets should agree with the CCA Class used for tax purposes in Tax Returns. Fixed Assets sub-components may be used where the underlying asset components are classified under multiple CCA Classes for tax purposes. If an applicant uses any different classes from those shown in the table, an explanation should be provided. (also see note 3 below).
A81: 3 | B81: The table may need to be customized for a utility's asset categories or for any new asset accounts announced or authorized by the Board.
A83: 4 | B83: The depreciation column (D) is not required as the relevant information will be provided in the following 2-C series of appendices.

Sheet App.2-B_Fixed Asset Cont 2011
M1: File Number: | N1: =#REF! -> 
M2: Exhibit:
M3: Tab:
M4: Schedule:
M5: Page:
M7: Date:
A9: Attachment 3
A10: Appendix 2-B
A11: Fixed Asset Continuity Schedule
F13: Year | G13: 2011
E15: Cost | K15: Accumulated Depreciation
A16: CCA Class | B16: OEB | C16: Description | D16: Depreciation Rate | E16: Opening Balance | F16: Additions | G16: Disposals | H16: Closing Balance | J16: Opening Balance | K16: Additions | L16: Disposals | M16: Closing Balance | N16: Net Book Value
A17: 12 | B17: 1611 | C17: Computer Software (Formally known as Account 1925)
A18: CEC | B18: 1612 | C18: Land Rights (Formally known as Account 1906)
B19: 1615 | C19: Land | E19: =+'App.2-B_Fixed Asset Cont 2010'!H18 -> 407800 | H19: =E19+F19+G19 -> 407800 | J19: =+'App.2-B_Fixed Asset Cont 2010'!M18 -> -407800 | M19: =J19+K19+L19 -> -407800
B20: 1620 | C20: Buildings &Fixtures | D20: 0.01810452889 | E20: =+'App.2-B_Fixed Asset Cont 2010'!H19 -> 5025000.38 | F20: 83148.22 | G20: -137055 | H20: 4971093.6 | J20: =+'App.2-B_Fixed Asset Cont 2010'!M19 -> -1362188.73 | K20: -81884.07 | L20: 137055 | M20: -1307017.8 | N20: =H20+M20 -> 3664075.8
B21: 1650 | C21: Reservoirs Dams & Water | E21: =+'App.2-B_Fixed Asset Cont 2010'!H20 -> 670777.72 | H21: 670777.72 | J21: =+'App.2-B_Fixed Asset Cont 2010'!M20 -> -750199.84 | M21: -750199.84 | N21: -79422.12
B22: 1665 | C22: Fuel Holders Produce | D22: 0.02300000348 | E22: =+'App.2-B_Fixed Asset Cont 2010'!H21 -> 5372645.71 | F22: 118539.73 | G22: -17643.94 | H22: 5473541.5 | J22: =+'App.2-B_Fixed Asset Cont 2010'!M21 -> -1348330.65 | K22: -124765 | L22: 17643.94 | M22: -1455451.71 | N22: 4018089.79
B23: 1670 | C23: Prime Movers | D23: 0.1289000011 | E23: =+'App.2-B_Fixed Asset Cont 2010'!H22 -> 13703993.5 | F23: 1976062.96 | G23: -1509651.76 | H23: 14170404.7 | J23: =+'App.2-B_Fixed Asset Cont 2010'!M22 -> -12402935.36 | K23: -1920056.37 | L23: 1509651.76 | M23: -12813339.97 | N23: 1357064.73
B24: 1675 | C24: Generators | D24: 0.02609999794 | E24: =+'App.2-B_Fixed Asset Cont 2010'!H23 -> 6270172.83 | F24: 1276142.74 | G24: -529040.15 | H24: 7017275.42 | J24: =+'App.2-B_Fixed Asset Cont 2010'!M23 -> -2189992.67 | K24: -200616.79 | L24: 529040.15 | M24: -1861569.31 | N24: 5155706.11
B25: 1680 | C25: Accessory Electc Equ | D25: 0.02320000405 | E25: =+'App.2-B_Fixed Asset Cont 2010'!H24 -> 1361323.9 | G25: -13724 | H25: 1347599.9 | J25: =+'App.2-B_Fixed Asset Cont 2010'!M24 -> -278786.66 | K25: -31450.05 | L25: 13724 | M25: -296512.71 | N25: 1051087.19
B26: 1685 | C26: Misc Power Plant Equ | D26: 0.02342243883 | E26: =+'App.2-B_Fixed Asset Cont 2010'!H25 -> 3644178.12 | F26: 219810.96 | G26: -15392 | H26: 3848597.08 | J26: =+'App.2-B_Fixed Asset Cont 2010'!M25 -> -1963045.49 | K26: -55434.02 | L26: 15392 | M26: -2003087.51 | N26: 1845509.57
A27: N/A | B27: 1805 | C27: Land | D27: 0.01340001303 | E27: =+'App.2-B_Fixed Asset Cont 2010'!H26 -> 294456.43 | H27: 294456.43 | J27: =+'App.2-B_Fixed Asset Cont 2010'!M26 -> -48020.95 | K27: -3945.72 | M27: -51966.67 | N27: 242489.76
B28: 1806 | C28: L&Rights | D28: 0.0136000872 | E28: =+'App.2-B_Fixed Asset Cont 2010'!H27 -> 234126.44 | H28: 234126.44 | J28: =+'App.2-B_Fixed Asset Cont 2010'!M27 -> -62601.43 | K28: -3184.14 | M28: -65785.57 | N28: 168340.87
A29: 47 | B29: 1808 | C29: Buildings
A30: 13 | B30: 1810 | C30: Leasehold Improvements
A31: 47 | B31: 1815 | C31: Transformer Station Equipment >50 kV
A32: 47 | B32: 1820 | C32: Distribution Station Equipment <50 kV
A33: 47 | B33: 1825 | C33: Storage Battery Equipment
A34: 47 | B34: 1830 | C34: Poles, Towers & Fixtures | D34: 0.02529999567 | E34: =+'App.2-B_Fixed Asset Cont 2010'!H33 -> 1786753.27 | F34: 243608.22 | G34: -30900.31 | H34: 1999461.18 | J34: =+'App.2-B_Fixed Asset Cont 2010'!M33 -> -369663.74 | K34: -48774.39 | L34: 30900.31 | M34: -387537.82 | N34: 1611923.36
A35: 47 | B35: 1835 | C35: Overhead Conductors & Devices | D35: 0.02529997181 | E35: =+'App.2-B_Fixed Asset Cont 2010'!H34 -> 1473430.1 | F35: 96588.38 | G35: -52595.22 | H35: 1517423.26 | J35: =+'App.2-B_Fixed Asset Cont 2010'!M34 -> -391383.31 | K35: -38932.38 | L35: 52595.22 | M35: -377720.47 | N35: 1139702.79
A36: 47 | B36: 1840 | C36: Underground Conduit
A37: 47 | B37: 1845 | C37: Underground Conductors & Devices | D37: 0.05060008228 | E37: =+'App.2-B_Fixed Asset Cont 2010'!H36 -> 186176.96 | H37: 186176.96 | J37: =+'App.2-B_Fixed Asset Cont 2010'!M36 -> -102438.41 | K37: -9420.57 | M37: -111858.98 | N37: =H37+M37 -> 74317.98
A38: 47 | B38: 1850 | C38: Line Transformers | D38: 0.02890002983 | E38: =+'App.2-B_Fixed Asset Cont 2010'!H37 -> 1738469.14 | F38: 75981.91 | G38: -49371.46 | H38: 1765079.59 | J38: =+'App.2-B_Fixed Asset Cont 2010'!M37 -> -491225.64 | K38: -49841.99 | L38: 46680.09 | M38: -494387.54 | N38: 1270692.05
A39: 47 | B39: 1855 | C39: Services (Overhead & Underground)
A40: 47 | B40: 1860 | C40: Meters | D40: 0.1498075347 | E40: =+'App.2-B_Fixed Asset Cont 2010'!H39 -> 265884.29 | F40: 84863.62 | G40: -39968.94 | H40: 310778.97 | J40: =+'App.2-B_Fixed Asset Cont 2010'!M39 -> -97069.16 | K40: -65429.72 | L40: 39968.94 | M40: -122529.94 | N40: 188249.03
A41: 47 | B41: 1860 | C41: Meters (Smart Meters)
A42: N/A | B42: 1905 | C42: Land
A43: 47 | B43: 1908 | C43: Buildings & Fixtures | D43: 0.0257999965 | E43: =+'App.2-B_Fixed Asset Cont 2010'!H42 -> 6664557.59 | F43: 1494446.51 | G43: -395217.94 | H43: 7763786.16 | J43: =+'App.2-B_Fixed Asset Cont 2010'!M42 -> -1421536.92 | K43: -190374.19 | L43: 395217.94 | M43: -1216693.17 | N43: 6547092.99
A44: 13 | B44: 1910 | C44: Leasehold Improvements | F44: 47269.78 | H44: 47269.78 | K44: -2666.01 | M44: -2666.01 | N44: 44603.77
A45: 8 | B45: 1915 | C45: Office Furniture & Equipment (10 years) | D45: 0.130166801 | E45: =+'App.2-B_Fixed Asset Cont 2010'!H44 -> 39114.87 | F45: 15334.03 | G45: -15334.03 | H45: 39114.87 | J45: =+'App.2-B_Fixed Asset Cont 2010'!M44 -> -10193.23 | K45: -5587.83 | M45: -15781.06 | N45: 23333.81
A46: 8 | B46: 1915 | C46: Office Furniture & Equipment (5 years)
A47: 10 | B47: 1920 | C47: Computer Equipment - Hardware | D47: 0.1998411158 | E47: =+'App.2-B_Fixed Asset Cont 2010'!H46 -> 52763.62 | F47: 256.25 | G47: 12270.03 | H47: 65289.9 | J47: =+'App.2-B_Fixed Asset Cont 2010'!M46 -> -16134.52 | K47: -11656.93 | L47: 3064 | M47: -24727.45 | N47: 40562.45
A48: 45 | B48: 1920 | C48: Computer Equip.-Hardware(Post Mar. 22/04)
A49: 45.1 | B49: 1920 | C49: Computer Equip.-Hardware(Post Mar. 19/07)
A50: 10 | B50: 1930 | C50: Transportation Equipment
A51: 8 | B51: 1935 | C51: Stores Equipment | D51: 0.111343817 | E51: =+'App.2-B_Fixed Asset Cont 2010'!H50 -> 165068.3 | F51: 47412.4 | G51: 18816.2 | H51: 231296.9 | J51: =+'App.2-B_Fixed Asset Cont 2010'!M50 -> -71097.17 | K51: -24406.67 | L51: 3190 | M51: -92313.84 | N51: 138983.06
A52: 8 | B52: 1940 | C52: Tools, Shop & Garage Equipment | D52: 0.1666666667 | E52: =+'App.2-B_Fixed Asset Cont 2010'!H51 -> 6078.24 | F52: 25809.12 | H52: 31887.36 | J52: =+'App.2-B_Fixed Asset Cont 2010'!M51 -> -1435.14 | K52: -3163.81 | M52: -4598.95 | N52: 27288.41
A53: 8 | B53: 1945 | C53: Measurement & Testing Equipment | D53: 0.1464571469 | E53: =+'App.2-B_Fixed Asset Cont 2010'!H52 -> 19088.57 | F53: 35289.15 | G53: -22006.2 | H53: 32371.52 | J53: =+'App.2-B_Fixed Asset Cont 2010'!M52 -> -7034.27 | K53: -4637.5 | M53: -11671.77 | N53: 20699.75
A54: 8 | B54: 1950 | C54: Power Operated Equipment
A55: 8 | B55: 1955 | C55: Communications Equipment | D55: 0.1578000991 | E55: =+'App.2-B_Fixed Asset Cont 2010'!H54 -> 20332.37 | H55: 20332.37 | J55: =+'App.2-B_Fixed Asset Cont 2010'!M54 -> -24320.65 | K55: -3208.45 | M55: -27529.1 | N55: -7196.73
A56: 8 | B56: 1955 | C56: Communication Equipment (Smart Meters)
A57: 8 | B57: 1960 | C57: Miscellaneous Equipment | D57: 0.1770986926 | E57: =+'App.2-B_Fixed Asset Cont 2010'!H56 -> 118981.05 | F57: 57251.59 | H57: 176232.64 | J57: =+'App.2-B_Fixed Asset Cont 2010'!M56 -> -23924.42 | K57: -29890.59 | M57: -53815.01 | N57: 122417.63
A58: 47 | B58: 1975 | C58: Load Management Controls Utility Premises
A59: 47 | B59: 1980 | C59: System Supervisor Equipment
A60: 47 | B60: 1985 | C60: Miscellaneous Fixed Assets
A61: 47 | B61: 1995 | C61: Contributions & Grants
B62: A | C62: Maj Rollup Acc Dep Suspense | J62: =+'App.2-B_Fixed Asset Cont 2010'!M61 -> -343689.1 | M62: -343689.1 | N62: -343689.1
B63: B | C63: Acc Dep - Contra for Group Retirement | J63: =+'App.2-B_Fixed Asset Cont 2010'!M62 -> 172061.28 | M63: 172061.28 | N63: 172061.28
B64: C | C64: Suspense/Conversion/Error | J64: =+'App.2-B_Fixed Asset Cont 2010'!M63 -> -1166.77 | K64: 1166.77
B65: etc.
C67: Total | E67: =SUM(E17:E66) -> 49521173.4 | F67: =SUM(F17:F66) -> 5897815.57 | G67: -2796814.72 | H67: 52622174.25 | J67: =SUM(J17:J66) -> -24014152.95 | K67: -2908160.42 | L67: 2794123.35 | M67: -24128190.02 | N67: 28493984.23
J69: Less: Fully Allocated Depreciation
A70: 10 | C70: Transportation | J70: Transportation
A71: 8 | C71: Stores Equipment | J71: Stores Equipment
J72: Net Depreciation | L72: =K67-L70-L71 -> -2908160.42
A74: Notes:
A76: 1 | B76: Tables in the format outlined above covering all fixed asset accounts should be submitted for the Test Year, Bridge Year and all relevant historical years. At a minimum , the applicant must provide data for the earlier of: 1) all historical years back to its last rebasing; or 2) at least three years of historical actuals, in addition to Bridge Year and Test Year forecasts.
A79: 2 | B79: The "CCA Class" for fixed assets should agree with the CCA Class used for tax purposes in Tax Returns. Fixed Assets sub-components may be used where the underlying asset components are classified under multiple CCA Classes for tax purposes. If an applicant uses any different classes from those shown in the table, an explanation should be provided. (also see note 3 below).
A82: 3 | B82: The table may need to be customized for a utility's asset categories or for any new asset accounts announced or authorized by the Board.
A84: 4 | B84: The depreciation column (D) is not required as the relevant information will be provided in the following 2-C series of appendices.

Sheet App.2-B_Fixed Asset Cont 2012
M1: File Number: | N1: =#REF! -> 
M2: Exhibit:
M3: Tab:
M4: Schedule:
M5: Page:
M7: Date:
A8: Attachment 3
A9: Appendix 2-B
A10: Fixed Asset Continuity Schedule
F12: Year | G12: 2012
E14: Cost | K14: Accumulated Depreciation
A15: CCA Class | B15: OEB | C15: Description | D15: Depreciation Rate | E15: Opening Balance | F15: Additions | G15: Disposals | H15: Closing Balance | J15: Opening Balance | K15: Additions | L15: Disposals | M15: Closing Balance | N15: Net Book Value
A16: 12 | B16: 1611 | C16: Computer Software (Formally known as Account 1925)
A17: CEC | B17: 1612 | C17: Land Rights (Formally known as Account 1906)
B18: 1615 | C18: Land | E18: =+'App.2-B_Fixed Asset Cont 2011'!H19 -> 407800 | H18: =E18+F18+G18 -> 407800 | J18: =+'App.2-B_Fixed Asset Cont 2011'!M19 -> -407800 | M18: =J18+K18+L18 -> -407800 | N18: =H18+M18 -> 0
B19: 1620 | C19: Buildings &Fixtures | D19: 0.01810452889 | E19: =+'App.2-B_Fixed Asset Cont 2011'!H20 -> 4971093.6 | F19: 124375.5453 | H19: 5095469.145 | J19: =+'App.2-B_Fixed Asset Cont 2011'!M20 -> -1307017.8 | K19: -87026.27995 | M19: -1394044.08 | N19: 3701425.065
B20: 1650 | C20: Reservoirs Dams & Water | E20: =+'App.2-B_Fixed Asset Cont 2011'!H21 -> 670777.72 | H20: 670777.72 | J20: =+'App.2-B_Fixed Asset Cont 2011'!M21 -> -750199.84 | M20: -750199.84 | N20: -79422.12
B21: 1665 | C21: Fuel Holders Produce | D21: 0.02300000348 | E21: =+'App.2-B_Fixed Asset Cont 2011'!H22 -> 5473541.5 | F21: 1544977.225 | H21: 7018518.725 | J21: =+'App.2-B_Fixed Asset Cont 2011'!M22 -> -1455451.71 | K21: -144064.528 | L21: 0 | M21: -1599516.238 | N21: 5419002.487
B22: 1670 | C22: Prime Movers | D22: 0.1289000011 | E22: =+'App.2-B_Fixed Asset Cont 2011'!H23 -> 14170404.7 | F22: 603833.4965 | G22: -150958.3741 | H22: 14623279.82 | J22: =+'App.2-B_Fixed Asset Cont 2011'!M23 -> -12813339.97 | K22: -1777495.352 | L22: 150958.3741 | M22: -14439876.95 | N22: 183402.8741
B23: 1675 | C23: Generators | D23: 0.02609999794 | E23: =+'App.2-B_Fixed Asset Cont 2011'!H24 -> 7017275.42 | F23: 2652472.247 | G23: -663118.0618 | H23: 9006629.605 | J23: =+'App.2-B_Fixed Asset Cont 2011'!M24 -> -1861569.31 | K23: -257034.6333 | L23: 663118.0618 | M23: -1455485.882 | N23: 7551143.724
B24: 1680 | C24: Accessory Electc Equ | D24: 0.02320000405 | E24: =+'App.2-B_Fixed Asset Cont 2011'!H25 -> 1347599.9 | F24: 329110.5 | H24: 1676710.4 | J24: =+'App.2-B_Fixed Asset Cont 2011'!M25 -> -296512.71 | K24: -44016.48609 | M24: -340529.1961 | N24: 1336181.204
B25: 1685 | C25: Misc Power Plant Equ | D25: 0.02342243883 | E25: =+'App.2-B_Fixed Asset Cont 2011'!H26 -> 3848597.08 | F25: 249005.5256 | H25: 4097602.606 | J25: =+'App.2-B_Fixed Asset Cont 2011'!M26 -> -2003087.51 | K25: -61385.2573 | M25: -2064472.767 | N25: 2033129.838
A26: N/A | B26: 1805 | C26: Land | D26: 0.01340001303 | E26: =+'App.2-B_Fixed Asset Cont 2011'!H27 -> 294456.43 | H26: 294456.43 | J26: =+'App.2-B_Fixed Asset Cont 2011'!M27 -> -51966.67 | K26: -3945.72 | M26: -55912.39 | N26: 238544.04
B27: 1806 | C27: L&Rights | D27: 0.0136000872 | E27: =+'App.2-B_Fixed Asset Cont 2011'!H28 -> 234126.44 | H27: 234126.44 | J27: =+'App.2-B_Fixed Asset Cont 2011'!M28 -> -65785.57 | K27: -3184.14 | M27: -68969.71 | N27: 165156.73
A28: 47 | B28: 1808 | C28: Buildings
A29: 13 | B29: 1810 | C29: Leasehold Improvements
A30: 47 | B30: 1815 | C30: Transformer Station Equipment >50 kV
A31: 47 | B31: 1820 | C31: Distribution Station Equipment <50 kV
A32: 47 | B32: 1825 | C32: Storage Battery Equipment
A33: 47 | B33: 1830 | C33: Poles, Towers & Fixtures | D33: 0.02529999567 | E33: =+'App.2-B_Fixed Asset Cont 2011'!H34 -> 1999461.18 | F33: 289880.0329 | G33: -43482.00494 | H33: 2245859.208 | J33: =+'App.2-B_Fixed Asset Cont 2011'!M34 -> -387537.82 | K33: -55499.08794 | L33: 43482.00494 | M33: -399554.903 | N33: 1846304.305
A34: 47 | B34: 1835 | C34: Overhead Conductors & Devices | D34: 0.02529997181 | E34: =+'App.2-B_Fixed Asset Cont 2011'!H35 -> 1517423.26 | F34: 30406.62976 | G34: -2128.464083 | H34: 1545701.426 | J34: =+'App.2-B_Fixed Asset Cont 2011'!M35 -> -377720.47 | K34: -38031.063 | L34: 2128.464083 | M34: -413623.0689 | N34: 1132078.357
A35: 47 | B35: 1840 | C35: Underground Conduit
A36: 47 | B36: 1845 | C36: Underground Conductors & Devices | D36: 0.05060008228 | E36: =+'App.2-B_Fixed Asset Cont 2011'!H37 -> 186176.96 | H36: 186176.96 | J36: =+'App.2-B_Fixed Asset Cont 2011'!M37 -> -111858.98 | K36: -9420.57 | M36: -121279.55 | N36: =H36+M36 -> 64897.41
A37: 47 | B37: 1850 | C37: Line Transformers | D37: 0.02890002983 | E37: =+'App.2-B_Fixed Asset Cont 2011'!H38 -> 1765079.59 | F37: 112210.8978 | G37: -22442.17955 | H37: 1854848.308 | J37: =+'App.2-B_Fixed Asset Cont 2011'!M38 -> -494387.54 | K37: -54422.29139 | L37: 22442.17955 | M37: -526367.6518 | N37: 1328480.656
A38: 47 | B38: 1855 | C38: Services (Overhead & Underground)
A39: 47 | B39: 1860 | C39: Meters | D39: 0.1498075347 | E39: =+'App.2-B_Fixed Asset Cont 2011'!H40 -> 310778.97 | F39: 55212.83954 | G39: -11597.46 | H39: 354394.3495 | J39: =+'App.2-B_Fixed Asset Cont 2011'!M40 -> -122529.94 | K39: -49758.16481 | L39: 11597.46 | M39: -160690.6448 | N39: 193703.7047
A40: 47 | B40: 1860 | C40: Meters (Smart Meters)
A41: N/A | B41: 1905 | C41: Land
A42: 47 | B42: 1908 | C42: Buildings & Fixtures | D42: 0.0257999965 | E42: =+'App.2-B_Fixed Asset Cont 2011'!H43 -> 7763786.16 | F42: 1212030.94 | H42: 8975817.1 | J42: =+'App.2-B_Fixed Asset Cont 2011'!M43 -> -1216693.17 | K42: -222258.7275 | M42: -1438951.898 | N42: 7536865.202
A43: 13 | B43: 1910 | C43: Leasehold Improvements | E43: =+'App.2-B_Fixed Asset Cont 2011'!H44 -> 47269.78 | H43: 47269.78 | J43: =+'App.2-B_Fixed Asset Cont 2011'!M44 -> -2666.01 | M43: -2666.01 | N43: 44603.77
A44: 8 | B44: 1915 | C44: Office Furniture & Equipment (10 years) | D44: 0.130166801 | E44: =+'App.2-B_Fixed Asset Cont 2011'!H45 -> 39114.87 | F44: 14372.80212 | G44: -10900.04 | H44: 42587.63212 | J44: =+'App.2-B_Fixed Asset Cont 2011'!M45 -> -15781.06 | K44: -7662.660799 | L44: 10900.04 | M44: -12543.6808 | N44: 30043.95132
A45: 8 | B45: 1915 | C45: Office Furniture & Equipment (5 years)
A46: 10 | B46: 1920 | C46: Computer Equipment - Hardware | D46: 0.1998411158 | E46: =+'App.2-B_Fixed Asset Cont 2011'!H47 -> 65289.9 | F46: 15578.28663 | G46: -2527.19 | H46: 78340.99663 | J46: =+'App.2-B_Fixed Asset Cont 2011'!M47 -> -24727.45 | K46: -10418.95555 | L46: 2527.19 | M46: -32619.21555 | N46: 45721.78108
A47: 45 | B47: 1920 | C47: Computer Equip.-Hardware(Post Mar. 22/04)
A48: 45.1 | B48: 1920 | C48: Computer Equip.-Hardware(Post Mar. 19/07)
A49: 10 | B49: 1930 | C49: Transportation Equipment
A50: 8 | B50: 1935 | C50: Stores Equipment | D50: 0.111343817 | E50: =+'App.2-B_Fixed Asset Cont 2011'!H51 -> 231296.9 | F50: 16511.81462 | G50: -45356.76 | H50: 202451.9546 | J50: =+'App.2-B_Fixed Asset Cont 2011'!M51 -> -92313.84 | K50: -21351.30104 | L50: 45356.76 | M50: -68308.38104 | N50: 134143.5736
A51: 8 | B51: 1940 | C51: Tools, Shop & Garage Equipment | D51: 0.1666666667 | E51: =+'App.2-B_Fixed Asset Cont 2011'!H52 -> 31887.36 | F51: 0 | H51: 31887.36 | J51: =+'App.2-B_Fixed Asset Cont 2011'!M52 -> -4598.95 | K51: -1013.04 | M51: -5611.99 | N51: 26275.37
A52: 8 | B52: 1945 | C52: Measurement & Testing Equipment | D52: 0.1464571469 | E52: =+'App.2-B_Fixed Asset Cont 2011'!H53 -> 32371.52 | F52: 5229.605841 | H52: 37601.12584 | J52: =+'App.2-B_Fixed Asset Cont 2011'!M53 -> -11671.77 | K52: -12131.94488 | M52: -23803.71488 | N52: 13797.41096
A53: 8 | B53: 1950 | C53: Power Operated Equipment
A54: 8 | B54: 1955 | C54: Communications Equipment | D54: 0.1578000991 | E54: =+'App.2-B_Fixed Asset Cont 2011'!H55 -> 20332.37 | H54: 20332.37 | J54: =+'App.2-B_Fixed Asset Cont 2011'!M55 -> -27529.1 | K54: -3208.45 | M54: -30737.55 | N54: -10405.18
A55: 8 | B55: 1955 | C55: Communication Equipment (Smart Meters)
A56: 8 | B56: 1960 | C56: Miscellaneous Equipment | D56: 0.1770986926 | E56: =+'App.2-B_Fixed Asset Cont 2011'!H57 -> 176232.64 | F56: 48307.49079 | H56: 224540.1308 | J56: =+'App.2-B_Fixed Asset Cont 2011'!M57 -> -53815.01 | K56: -34512.72847 | M56: -88327.73847 | N56: 136212.3923
A57: 47 | B57: 1975 | C57: Load Management Controls Utility Premises
A58: 47 | B58: 1980 | C58: System Supervisor Equipment
A59: 47 | B59: 1985 | C59: Miscellaneous Fixed Assets
A60: 47 | B60: 1995 | C60: Contributions & Grants
B61: A | C61: Maj Rollup Acc Dep Suspense | J61: =+'App.2-B_Fixed Asset Cont 2011'!M62 -> -343689.1 | M61: -343689.1 | N61: -343689.1
B62: B | C62: Acc Dep - Contra for Group Retirement | J62: =+'App.2-B_Fixed Asset Cont 2011'!M63 -> 172061.28 | M62: 172061.28 | N62: 172061.28
B63: C | C63: Suspense/Conversion/Error
B64: etc.
C66: Total | E66: =SUM(E16:E65) -> 52622174.25 | F66: =SUM(F16:F65) -> 7303515.88 | G66: -952510.5345 | H66: 58973179.6 | J66: =SUM(J16:J65) -> -24128190.02 | K66: -2897841.382 | L66: 952510.5345 | M66: -26073520.87 | N66: 32899658.73
J68: Less: Fully Allocated Depreciation
A69: 10 | C69: Transportation | J69: Transportation
A70: 8 | C70: Stores Equipment | J70: Stores Equipment
J71: Net Depreciation | L71: =K66-L69-L70 -> -2897841.382
A73: Notes:
A75: 1 | B75: Tables in the format outlined above covering all fixed asset accounts should be submitted for the Test Year, Bridge Year and all relevant historical years. At a minimum , the applicant must provide data for the earlier of: 1) all historical years back to its last rebasing; or 2) at least three years of historical actuals, in addition to Bridge Year and Test Year forecasts.
A78: 2 | B78: The "CCA Class" for fixed assets should agree with the CCA Class used for tax purposes in Tax Returns. Fixed Assets sub-components may be used where the underlying asset components are classified under multiple CCA Classes for tax purposes. If an applicant uses any different classes from those shown in the table, an explanation should be provided. (also see note 3 below).
A81: 3 | B81: The table may need to be customized for a utility's asset categories or for any new asset accounts announced or authorized by the Board.
A83: 4 | B83: The depreciation column (D) is not required as the relevant information will be provided in the following 2-C series of appendices.

Sheet App.2-B_Fixed Asset Cont 2013
M1: File Number: | N1: =#REF! -> 
M2: Exhibit:
M3: Tab:
M4: Schedule:
M5: Page:
M7: Date:
A8: Attachment 3
A9: Appendix 2-B
A10: Fixed Asset Continuity Schedule
F12: Year | G12: 2013
E14: Cost | K14: Accumulated Depreciation
A15: CCA Class | B15: OEB | C15: Description | D15: Depreciation Rate | E15: Opening Balance | F15: Additions | G15: Disposals | H15: Closing Balance | J15: Opening Balance | K15: Additions | L15: Disposals | M15: Closing Balance | N15: Net Book Value
A16: 12 | B16: 1611 | C16: Computer Software (Formally known as Account 1925)
A17: CEC | B17: 1612 | C17: Land Rights (Formally known as Account 1906)
B18: 1615 | C18: Land | E18: =+'App.2-B_Fixed Asset Cont 2012'!H18 -> 407800 | G18: -407800 | J18: =+'App.2-B_Fixed Asset Cont 2012'!M18 -> -407800 | L18: 407800
B19: 1620 | C19: Buildings &Fixtures | D19: 0.0278 | E19: =+'App.2-B_Fixed Asset Cont 2012'!H19 -> 5095469.145 | F19: 29503.82031 | G19: -527063.4 | H19: =E19+F19+G19 -> 4597909.566 | J19: =+'App.2-B_Fixed Asset Cont 2012'!M19 -> -1394044.08 | K19: -135105.7533 | L19: 527063.4 | M19: =J19+K19+L19 -> -1002086.433 | N19: =H19+M19 -> 3595823.132
B20: 1650 | C20: Reservoirs Dams & Water | E20: =+'App.2-B_Fixed Asset Cont 2012'!H20 -> 670777.72 | G20: -670777.72 | J20: =+'App.2-B_Fixed Asset Cont 2012'!M20 -> -750199.84 | L20: 670777.72 | M20: -79422.12 | N20: -79422.12
B21: 1665 | C21: Fuel Holders Produce | D21: 0.0277 | E21: =+'App.2-B_Fixed Asset Cont 2012'!H21 -> 7018518.725 | F21: 99628.57578 | H21: 7118147.301 | J21: =+'App.2-B_Fixed Asset Cont 2012'!M21 -> -1599516.238 | K21: -196240.102 | M21: -1795756.34 | N21: 5322390.961
B22: 1670 | C22: Prime Movers | D22: 0.0673 | E22: =+'App.2-B_Fixed Asset Cont 2012'!H22 -> 14623279.82 | F22: 1104835.284 | G22: -276208.821 | H22: 15451906.29 | J22: =+'App.2-B_Fixed Asset Cont 2012'!M22 -> -14439876.95 | K22: -976250.6459 | L22: 276208.821 | M22: -15139918.77 | N22: 311987.5121
B23: 1675 | C23: Generators | D23: 0.0545 | E23: =+'App.2-B_Fixed Asset Cont 2012'!H23 -> 9006629.605 | F23: 3568825.084 | G23: -1806747.931 | H23: 10768706.76 | J23: =+'App.2-B_Fixed Asset Cont 2012'!M23 -> -1455485.882 | K23: -586014.7179 | L23: 1806747.931 | M23: -234752.6685 | N23: 10533954.09
B24: 1680 | C24: Accessory Electc Equ | D24: 0.0544 | E24: =+'App.2-B_Fixed Asset Cont 2012'!H24 -> 1676710.4 | F24: 642032.875 | H24: 2318743.275 | J24: =+'App.2-B_Fixed Asset Cont 2012'!M24 -> -340529.1961 | K24: -129626.1526 | M24: -470155.3487 | N24: 1848587.926
B25: 1685 | C25: Misc Power Plant Equ | D25: 0.0389 | E25: =+'App.2-B_Fixed Asset Cont 2012'!H25 -> 4097602.606 | F25: 803591.7013 | G25: -1399523.95 | H25: 3501670.357 | J25: =+'App.2-B_Fixed Asset Cont 2012'!M25 -> -2064472.767 | K25: -122421.6621 | L25: 1399523.95 | M25: -787370.4794 | N25: 2714299.878
A26: N/A | B26: 1805 | C26: Land | D26: 0.0194 | E26: =+'App.2-B_Fixed Asset Cont 2012'!H26 -> 294456.43 | H26: 294456.43 | J26: =+'App.2-B_Fixed Asset Cont 2012'!M26 -> -55912.39 | K26: -5712.454742 | M26: -61624.84474 | N26: 232831.5853
B27: 1806 | C27: L&Rights | D27: 0.0097 | E27: =+'App.2-B_Fixed Asset Cont 2012'!H27 -> 234126.44 | H27: 234126.44 | J27: =+'App.2-B_Fixed Asset Cont 2012'!M27 -> -68969.71 | K27: -2271.026468 | M27: -71240.73647 | N27: 162885.7035
A28: 47 | B28: 1808 | C28: Buildings
A29: 13 | B29: 1810 | C29: Leasehold Improvements
A30: 47 | B30: 1815 | C30: Transformer Station Equipment >50 kV
A31: 47 | B31: 1820 | C31: Distribution Station Equipment <50 kV
A32: 47 | B32: 1825 | C32: Storage Battery Equipment
A33: 47 | B33: 1830 | C33: Poles, Towers & Fixtures | D33: 0.0178 | E33: =+'App.2-B_Fixed Asset Cont 2012'!H33 -> 2245859.208 | F33: 359692.4834 | G33: -53953.8725 | H33: 2551597.819 | J33: =+'App.2-B_Fixed Asset Cont 2012'!M33 -> -399554.903 | K33: -44347.80175 | L33: 53953.8725 | M33: -389948.8322 | N33: 2161648.987
A34: 47 | B34: 1835 | C34: Overhead Conductors & Devices | D34: 0.0194 | E34: =+'App.2-B_Fixed Asset Cont 2012'!H34 -> 1545701.426 | F34: 37438.09085 | G34: -2620.666359 | H34: 1580518.85 | J34: =+'App.2-B_Fixed Asset Cont 2012'!M34 -> -413623.0689 | K34: -29794.86479 | L34: 2620.666359 | M34: -440797.2674 | N34: 1139721.583
A35: 47 | B35: 1840 | C35: Underground Conduit
A36: 47 | B36: 1845 | C36: Underground Conductors & Devices | D36: 0.0303 | E36: =+'App.2-B_Fixed Asset Cont 2012'!H36 -> 186176.96 | H36: 186176.96 | J36: =+'App.2-B_Fixed Asset Cont 2012'!M36 -> -121279.55 | K36: -5641.162191 | M36: -126920.7122 | N36: =H36+M36 -> 59256.24781
A37: 47 | B37: 1850 | C37: Line Transformers | D37: 0.0241 | E37: =+'App.2-B_Fixed Asset Cont 2012'!H37 -> 1854848.308 | F37: 136600.5408 | G37: -27320.10816 | H37: 1964128.741 | J37: =+'App.2-B_Fixed Asset Cont 2012'!M37 -> -526367.6518 | K37: -48052.21859 | L37: 27320.10816 | M37: -547099.7623 | N37: 1417028.979
A38: 47 | B38: 1855 | C38: Services (Overhead & Underground)
A39: 47 | B39: 1860 | C39: Meters | D39: 0.0658 | E39: =+'App.2-B_Fixed Asset Cont 2012'!H39 -> 354394.3495 | F39: 101263.235 | G39: -43039.89 | H39: 412617.6945 | J39: =+'App.2-B_Fixed Asset Cont 2012'!M39 -> -160690.6448 | K39: -23684.10837 | L39: 43039.89 | M39: -141334.8632 | N39: 271282.8313
A40: 47 | B40: 1860 | C40: Meters (Smart Meters)
A41: N/A | B41: 1905 | C41: Land
A42: 47 | B42: 1908 | C42: Buildings & Fixtures | D42: 0.0196 | E42: =+'App.2-B_Fixed Asset Cont 2012'!H42 -> 8975817.1 | F42: 502819 | H42: 9478636.1 | J42: =+'App.2-B_Fixed Asset Cont 2012'!M42 -> -1438951.898 | K42: -185653.2621 | M42: -1624605.16 | N42: 7854030.94
A43: 13 | B43: 1910 | C43: Leasehold Improvements | D43: 0 | E43: =+'App.2-B_Fixed Asset Cont 2012'!H43 -> 47269.78 | H43: 47269.78 | J43: =+'App.2-B_Fixed Asset Cont 2012'!M43 -> -2666.01 | M43: -2666.01 | N43: 44603.77
A44: 8 | B44: 1915 | C44: Office Furniture & Equipment (10 years) | D44: 0.1429 | E44: =+'App.2-B_Fixed Asset Cont 2012'!H44 -> 42587.63212 | F44: 14372.80212 | H44: 56960.43423 | J44: =+'App.2-B_Fixed Asset Cont 2012'!M44 -> -12543.6808 | K44: -10082.75009 | M44: -22626.43089 | N44: 34334.00335
A45: 8 | B45: 1915 | C45: Office Furniture & Equipment (5 years)
A46: 10 | B46: 1920 | C46: Computer Equipment - Hardware | D46: 0.1925 | E46: =+'App.2-B_Fixed Asset Cont 2012'!H46 -> 78340.99663 | F46: 15578.28663 | G46: -13960 | H46: 79959.28326 | J46: =+'App.2-B_Fixed Asset Cont 2012'!M46 -> -32619.21555 | K46: -10576.72865 | L46: 13960 | M46: -29235.9442 | N46: 50723.33905
A47: 45 | B47: 1920 | C47: Computer Equip.-Hardware(Post Mar. 22/04)
A48: 45.1 | B48: 1920 | C48: Computer Equip.-Hardware(Post Mar. 19/07)
A49: 10 | B49: 1930 | C49: Transportation Equipment
A50: 8 | B50: 1935 | C50: Stores Equipment | D50: 0.1237 | E50: =+'App.2-B_Fixed Asset Cont 2012'!H50 -> 202451.9546 | F50: 16511.81462 | G50: -10346.35 | H50: 208617.4192 | J50: =+'App.2-B_Fixed Asset Cont 2012'!M50 -> -68308.38104 | K50: -23650.34364 | L50: 10346.35 | M50: -81612.37468 | N50: 127005.0446
A51: 8 | B51: 1940 | C51: Tools, Shop & Garage Equipment | D51: 0.1667 | E51: =+'App.2-B_Fixed Asset Cont 2012'!H51 -> 31887.36 | H51: 31887.36 | J51: =+'App.2-B_Fixed Asset Cont 2012'!M51 -> -5611.99 | K51: -1013.242608 | M51: -6625.232608 | N51: 25262.12739
A52: 8 | B52: 1945 | C52: Measurement & Testing Equipment | D52: 0.1734 | E52: =+'App.2-B_Fixed Asset Cont 2012'!H52 -> 37601.12584 | F52: 5229.605841 | H52: 42830.73168 | J52: =+'App.2-B_Fixed Asset Cont 2012'!M52 -> -23803.71488 | K52: -15264.61854 | M52: -39068.33341 | N52: 3762.398268
A53: 8 | B53: 1950 | C53: Power Operated Equipment
A54: 8 | B54: 1955 | C54: Communications Equipment | D54: 0.0338 | E54: =+'App.2-B_Fixed Asset Cont 2012'!H54 -> 20332.37 | H54: 20332.37 | J54: =+'App.2-B_Fixed Asset Cont 2012'!M54 -> -30737.55 | K54: -687.234106 | M54: -31424.78411 | N54: -11092.41411
A55: 8 | B55: 1955 | C55: Communication Equipment (Smart Meters)
A56: 8 | B56: 1960 | C56: Miscellaneous Equipment | D56: 0.2 | E56: =+'App.2-B_Fixed Asset Cont 2012'!H56 -> 224540.1308 | F56: 48307.49079 | G56: -24710.98 | H56: 248136.6416 | J56: =+'App.2-B_Fixed Asset Cont 2012'!M56 -> -88327.73847 | K56: -44042.60724 | L56: 24710.98 | M56: -107659.3657 | N56: 140477.2759
A57: 47 | B57: 1975 | C57: Load Management Controls Utility Premises
A58: 47 | B58: 1980 | C58: System Supervisor Equipment
A59: 47 | B59: 1985 | C59: Miscellaneous Fixed Assets
A60: 47 | B60: 1995 | C60: Contributions & Grants
B61: A | C61: Maj Rollup Acc Dep Suspense | J61: =+'App.2-B_Fixed Asset Cont 2012'!M61 -> -343689.1 | M61: -343689.1 | N61: -343689.1
B62: B | C62: Acc Dep - Contra for Group Retirement | J62: =+'App.2-B_Fixed Asset Cont 2012'!M62 -> 172061.28 | M62: 172061.28 | N62: 172061.28
B63: C | C63: Suspense/Conversion/Error
B64: etc.
C66: Total | E66: =SUM(E16:E65) -> 58973179.6 | F66: =SUM(F16:F65) -> 7486230.69 | G66: -5264073.689 | H66: 61195336.6 | J66: -26073520.87 | K66: -2596133.458 | L66: 5264073.689 | M66: -23405580.64 | N66: 37789755.96
J68: Less: Fully Allocated Depreciation
A69: 10 | C69: Transportation | J69: Transportation
A70: 8 | C70: Stores Equipment | J70: Stores Equipment
J71: Net Depreciation | L71: =K66-L69-L70 -> -2596133.458
A73: Notes:
A75: 1 | B75: Tables in the format outlined above covering all fixed asset accounts should be submitted for the Test Year, Bridge Year and all relevant historical years. At a minimum , the applicant must provide data for the earlier of: 1) all historical years back to its last rebasing; or 2) at least three years of historical actuals, in addition to Bridge Year and Test Year forecasts.
A78: 2 | B78: The "CCA Class" for fixed assets should agree with the CCA Class used for tax purposes in Tax Returns. Fixed Assets sub-components may be used where the underlying asset components are classified under multiple CCA Classes for tax purposes. If an applicant uses any different classes from those shown in the table, an explanation should be provided. (also see note 3 below).
A81: 3 | B81: The table may need to be customized for a utility's asset categories or for any new asset accounts announced or authorized by the Board.
A83: 4 | B83: The depreciation column (D) is not required as the relevant information will be provided in the following 2-C series of appendices.
